[Event "European Women's Chess Championship (1-48)"]
[Site "Batumi, Georgia"]
[Date "2026.05.25"]
[Round "1.16"]
[White "Mgeladze, Kesaria"]
[Black "Roebers, Eline"]
[Result "1/2-1/2"]
[TimeControl "90min/ 40moves+ 30min+ 30-sec increment from move 1"]
[WhiteTitle "-"]
[BlackTitle "-"]
[WhiteFideId "13621130"]
[BlackFideId "1058401"]
[WhiteElo "2147"]
[BlackElo "2389"]

1. e4 {[%clk 01:30:56]} {[%emt 00:00:04]} c5 {[%clk 01:30:57]} {[%emt
00:00:04]} 2. Nf3 {[%clk 01:31:21]} {[%emt 00:00:05]} Nc6 {[%clk 01:31:23]}
{[%emt 00:00:03]} 3. d4 {[%clk 01:31:45]} {[%emt 00:00:05]} cxd4 {[%clk
01:31:50]} {[%emt 00:00:04]} 4. Nxd4 {[%clk 01:32:11]} {[%emt 00:00:04]} Nf6
{[%clk 01:32:16]} {[%emt 00:00:04]} 5. Nc3 {[%clk 01:32:34]} {[%emt 00:00:07]}
e5 {[%clk 01:32:43]} {[%emt 00:00:03]} 6. Ndb5 {[%clk 01:32:39]} {[%emt
00:00:25]} d6 {[%clk 01:33:08]} {[%emt 00:00:05]} 7. Nd5 {[%clk 01:32:53]}
{[%emt 00:00:15]} Nxd5 {[%clk 01:33:35]} {[%emt 00:00:05]} 8. exd5 {[%clk
01:33:17]} {[%emt 00:00:06]} Nb8 {[%clk 01:34:02]} {[%emt 00:00:03]} 9. a4
{[%clk 01:33:15]} {[%emt 00:00:31]} Be7 {[%clk 01:34:23]} {[%emt 00:00:09]} 10.
Be2 {[%clk 01:33:18]} {[%emt 00:00:27]} O-O {[%clk 01:34:49]} {[%emt 00:00:05]}
11. O-O {[%clk 01:33:39]} {[%emt 00:00:08]} Bf5 {[%clk 01:35:16]} {[%emt
00:00:03]} 12. Be3 {[%clk 01:28:39]} {[%emt 00:05:29]} a6 {[%clk 01:35:27]}
{[%emt 00:00:21]} 13. Na3 {[%clk 01:28:30]} {[%emt 00:00:37]} Nd7 {[%clk
01:35:52]} {[%emt 00:00:06]} 14. Qd2 {[%clk 01:22:08]} {[%emt 00:06:52]} Bg6
{[%clk 01:35:36]} {[%emt 00:00:46]} 15. a5 {[%clk 01:17:12]} {[%emt 00:05:26]}
f5 {[%clk 01:35:33]} {[%emt 00:00:33]} 16. f4 {[%clk 01:16:04]} {[%emt
00:01:38]} Qc7 {[%clk 01:25:51]} {[%emt 00:10:12]} 17. Nc4 {[%clk 01:09:20]}
{[%emt 00:07:14]} Bf6 {[%clk 00:49:31]} {[%emt 00:36:51]} 18. Qb4 {[%clk
00:54:04]} {[%emt 00:15:46]} Rac8 {[%clk 00:47:19]} {[%emt 00:02:41]} 19. c3
{[%clk 00:40:08]} {[%emt 00:14:26]} Be7 {[%clk 00:35:29]} {[%emt 00:12:20]} 20.
Bb6 {[%clk 00:25:10]} {[%emt 00:15:28]} Nxb6 {[%clk 00:33:05]} {[%emt
00:02:53]} 21. axb6 {[%clk 00:25:27]} {[%emt 00:00:14]} Qd8 {[%clk 00:25:55]}
{[%emt 00:07:40]} 22. Na5 {[%clk 00:23:15]} {[%emt 00:02:42]} Qd7 {[%clk
00:20:52]} {[%emt 00:05:34]} 23. Nxb7 {[%clk 00:16:59]} {[%emt 00:06:46]} Qxb7
{[%clk 00:21:18]} {[%emt 00:00:03]} 24. Bxa6 {[%clk 00:17:23]} {[%emt
00:00:06]} Qxd5 {[%clk 00:21:30]} {[%emt 00:00:18]} 25. Bxc8 {[%clk 00:16:22]}
{[%emt 00:01:30]} Rxc8 {[%clk 00:21:59]} {[%emt 00:00:02]} 26. fxe5 {[%clk
00:16:07]} {[%emt 00:00:45]} Rb8 {[%clk 00:18:44]} {[%emt 00:03:46]} 27. Rfd1
{[%clk 00:12:17]} {[%emt 00:04:20]} Qc6 {[%clk 00:18:23]} {[%emt 00:00:51]} 28.
Ra7 {[%clk 00:09:23]} {[%emt 00:03:22]} Bd8 {[%clk 00:16:01]} {[%emt 00:02:54]}
29. Rxd6 {[%clk 00:07:37]} {[%emt 00:02:15]} Bxb6+ {[%clk 00:14:17]} {[%emt
00:02:14]} 30. Kh1 {[%clk 00:07:13]} {[%emt 00:00:53]} Bxa7 {[%clk 00:10:22]}
{[%emt 00:04:26]} 31. Rxc6 {[%clk 00:05:28]} {[%emt 00:02:15]} Rxb4 {[%clk
00:10:49]} {[%emt 00:00:03]} 32. cxb4 {[%clk 00:05:55]} {[%emt 00:00:04]} Be8
{[%clk 00:10:44]} {[%emt 00:00:35]} 33. Rc8 {[%clk 00:03:33]} {[%emt 00:02:51]}
Kf8 {[%clk 00:11:11]} {[%emt 00:00:04]} 34. b5 {[%clk 00:01:52]} {[%emt
00:02:11]} Bd4 {[%clk 00:10:17]} {[%emt 00:01:23]} 35. Rd8 {[%clk 00:01:31]}
{[%emt 00:00:50]} Bb6 {[%clk 00:05:18]} {[%emt 00:05:31]} 36. Rb8 {[%clk
00:01:27]} {[%emt 00:00:33]} Bc7 {[%clk 00:05:14]} {[%emt 00:00:34]} 37. Rc8
{[%clk 00:01:05]} {[%emt 00:00:50]} Bb6 {[%clk 00:05:37]} {[%emt 00:00:10]} 38.
Rb8 {[%clk 00:01:24]} {[%emt 00:00:10]} Bc7 {[%clk 00:06:03]} {[%emt 00:00:04]}
39. Rb7 {[%clk 00:01:18]} {[%emt 00:00:36]} Bxe5 {[%clk 00:06:10]} {[%emt
00:00:24]} 40. b6 {[%clk 00:01:30]} {[%emt 00:00:17]} Bc6 {[%clk 00:05:13]}
{[%emt 00:01:27]} 41. Ra7 {[%clk 00:01:33]} {[%emt 00:00:27]} Bb8 {[%clk
00:04:48]} {[%emt 00:00:56]} 42. Ra5 {[%clk 00:01:52]} {[%emt 00:00:10]} Ke7
{[%clk 00:30:19]} {[%emt 00:04:59]} 43. b7 {[%clk 00:25:03]} {[%emt 00:07:19]}
Kd6 {[%clk 00:27:24]} {[%emt 00:03:25]} 44. Rxf5 {[%clk 00:25:12]} {[%emt
00:00:21]} Ke7 {[%clk 00:15:14]} {[%emt 00:12:40]} 45. Rc5 {[%clk 00:23:47]}
{[%emt 00:01:54]} Kd7 {[%clk 00:14:40]} {[%emt 00:01:05]} 46. Rf5 {[%clk
00:23:12]} {[%emt 00:01:04]} Ke7 {[%clk 00:15:05]} {[%emt 00:00:06]} 47. Rg5
{[%clk 00:20:13]} {[%emt 00:03:28]} g6 {[%clk 00:15:08]} {[%emt 00:00:28]} 48.
h4 {[%clk 00:20:12]} {[%emt 00:00:30]} Kd7 {[%clk 00:10:17]} {[%emt 00:05:22]}
49. h5 {[%clk 00:19:26]} {[%emt 00:01:15]} Bxb7 {[%clk 00:10:32]} {[%emt
00:00:17]} 50. hxg6 {[%clk 00:19:23]} {[%emt 00:00:33]} hxg6 {[%clk 00:10:59]}
{[%emt 00:00:02]} 51. Rxg6 {[%clk 00:19:45]} {[%emt 00:00:07]} Be5 {[%clk
00:11:28]} {[%emt 00:00:02]} 52. Rb6 {[%clk 00:16:49]} {[%emt 00:03:26]} Bc6
{[%clk 00:11:52]} {[%emt 00:00:07]} 53. Rb4 {[%clk 00:16:41]} {[%emt 00:00:37]}
Kd6 {[%clk 00:09:20]} {[%emt 00:03:01]} 54. b3 {[%clk 00:15:34]} {[%emt
00:01:37]} Bd5 {[%clk 00:09:36]} {[%emt 00:00:15]} 55. Rb8 {[%clk 00:15:30]}
{[%emt 00:00:34]} Kd7 {[%clk 00:09:36]} {[%emt 00:00:30]} 56. Rb4 {[%clk
00:15:14]} {[%emt 00:00:44]} Bd6 {[%clk 00:09:41]} {[%emt 00:00:27]} 57. Rd4
{[%clk 00:15:16]} {[%emt 00:00:28]} 1/2-1/2

[Event "European Women's Chess Championship (1-48)"]
[Site "Batumi, Georgia"]
[Date "2026.05.25"]
[Round "1.17"]
[White "Efroimski, Marsel"]
[Black "Mamedjarova, Zeinab"]
[Result "1/2-1/2"]
[TimeControl "90min/ 40moves+ 30min+ 30-sec increment from move 1"]
[WhiteTitle "-"]
[BlackTitle "-"]
[WhiteFideId "2810964"]
[BlackFideId "13401521"]
[WhiteElo "2386"]
[BlackElo "2137"]

1. e4 {[%clk 01:30:59]} {[%emt 00:00:01]} e5 {[%clk 01:30:51]} {[%emt
00:00:09]} 2. Nf3 {[%clk 01:31:24]} {[%emt 00:00:05]} Nc6 {[%clk 01:31:17]}
{[%emt 00:00:04]} 3. d4 {[%clk 01:31:34]} {[%emt 00:00:20]} exd4 {[%clk
01:31:37]} {[%emt 00:00:09]} 4. Nxd4 {[%clk 01:32:03]} {[%emt 00:00:02]} Bc5
{[%clk 01:30:18]} {[%emt 00:01:49]} 5. Nb3 {[%clk 01:32:24]} {[%emt 00:00:09]}
Bb6 {[%clk 01:25:15]} {[%emt 00:05:33]} 6. Nc3 {[%clk 01:32:12]} {[%emt
00:00:42]} Nf6 {[%clk 01:22:33]} {[%emt 00:03:11]} 7. Qe2 {[%clk 01:32:37]}
{[%emt 00:00:05]} d6 {[%clk 01:22:39]} {[%emt 00:00:25]} 8. Be3 {[%clk
01:28:05]} {[%emt 00:05:01]} O-O {[%clk 01:18:38]} {[%emt 00:04:31]} 9. O-O-O
{[%clk 01:24:39]} {[%emt 00:03:56]} Re8 {[%clk 01:10:46]} {[%emt 00:08:22]} 10.
f3 {[%clk 01:19:40]} {[%emt 00:05:29]} Be6 {[%clk 01:05:22]} {[%emt 00:05:55]}
11. Bg5 {[%clk 01:08:14]} {[%emt 00:11:56]} a5 {[%clk 00:59:07]} {[%emt
00:06:46]} 12. a4 {[%clk 00:53:14]} {[%emt 00:15:29]} Bxb3 {[%clk 00:48:40]}
{[%emt 00:10:57]} 13. cxb3 {[%clk 00:53:03]} {[%emt 00:00:41]} h6 {[%clk
00:40:42]} {[%emt 00:08:29]} 14. Bh4 {[%clk 00:50:27]} {[%emt 00:03:05]} Nb4
{[%clk 00:32:25]} {[%emt 00:08:47]} 15. g4 {[%clk 00:42:50]} {[%emt 00:08:07]}
c6 {[%clk 00:29:24]} {[%emt 00:03:31]} 16. Qg2 {[%clk 00:37:48]} {[%emt
00:05:31]} Qe7 {[%clk 00:24:55]} {[%emt 00:05:00]} 17. Kb1 {[%clk 00:34:35]}
{[%emt 00:03:42]} Qe6 {[%clk 00:22:53]} {[%emt 00:02:33]} 18. g5 {[%clk
00:23:31]} {[%emt 00:11:34]} hxg5 {[%clk 00:21:50]} {[%emt 00:01:33]} 19. Bxg5
{[%clk 00:23:50]} {[%emt 00:00:11]} Nh7 {[%clk 00:18:41]} {[%emt 00:03:38]} 20.
Bc1 {[%clk 00:19:10]} {[%emt 00:05:10]} Qxb3 {[%clk 00:07:28]} {[%emt
00:11:44]} 21. Bh6 {[%clk 00:19:21]} {[%emt 00:00:18]} g6 {[%clk 00:07:43]}
{[%emt 00:00:15]} 22. Rxd6 {[%clk 00:18:57]} {[%emt 00:00:55]} Re6 {[%clk
00:08:09]} {[%emt 00:00:04]} 23. Rxe6 {[%clk 00:17:30]} {[%emt 00:01:57]} Qxe6
{[%clk 00:08:37]} {[%emt 00:00:02]} 24. f4 {[%clk 00:15:50]} {[%emt 00:02:09]}
Bd4 {[%clk 00:06:00]} {[%emt 00:03:07]} 25. f5 {[%clk 00:15:46]} {[%emt
00:00:34]} Qb3 {[%clk 00:06:18]} {[%emt 00:00:12]} 26. fxg6 {[%clk 00:12:22]}
{[%emt 00:03:54]} Bxc3 {[%emt 00:06:09]} 27. Bc4 {[%clk 00:07:04]} Qxc4 {[%clk
00:06:54]} {[%emt 00:00:03]} 28. bxc3 {[%clk 00:06:34]} {[%emt 00:01:01]} Qb3+
{[%clk 00:02:22]} {[%emt 00:05:02]} 29. Qb2 {[%clk 00:06:53]} {[%emt 00:00:11]}
Qe6 {[%clk 00:01:57]} {[%emt 00:00:54]} 30. cxb4 {[%clk 00:01:25]} {[%emt
00:05:58]} Qxe4+ {[%clk 00:01:38]} {[%emt 00:00:50]} 31. Ka2 {[%clk 00:01:10]}
{[%emt 00:00:45]} Qd5+ {[%clk 00:01:01]} {[%emt 00:01:07]} 32. Qb3 {[%clk
00:01:10]} {[%emt 00:00:30]} Qg2+ {[%clk 00:01:30]} {[%emt 00:00:01]} 33. Qb2
{[%clk 00:00:40]} {[%emt 00:01:01]} Qd5+ {[%clk 00:01:38]} {[%emt 00:00:21]} 34.
Qb3 {[%clk 00:01:07]} {[%emt 00:00:03]} Qg2+ {[%clk 00:02:02]} {[%emt
00:00:05]} 35. Ka3 {[%clk 00:00:39]} {[%emt 00:00:59]} axb4+ {[%clk 00:02:23]}
{[%emt 00:00:09]} 36. Kxb4 {[%clk 00:01:06]} {[%emt 00:00:03]} Qxg6 {[%clk
00:02:02]} {[%emt 00:00:51]} 37. Qg3 {[%clk 00:00:38]} {[%emt 00:00:58]} Re8
{[%clk 00:01:15]} {[%emt 00:01:17]} 38. Qxg6+ {[%clk 00:00:47]} {[%emt
00:00:20]} fxg6 {[%clk 00:01:43]} {[%emt 00:00:02]} 39. Rd1 {[%clk 00:00:36]}
{[%emt 00:00:41]} Nf6 {[%clk 00:02:00]} {[%emt 00:00:13]} 40. Rd6 {[%clk
00:00:34]} {[%emt 00:00:33]} Re4+ {[%clk 00:00:32]} {[%emt 00:01:58]} 41. Kb3
{[%clk 00:29:56]} {[%emt 00:02:46]} Kf7 {[%clk 00:28:40]} {[%emt 00:02:22]} 42.
Bg5 {[%clk 00:28:18]} {[%emt 00:02:07]} Re6 {[%clk 00:27:05]} {[%emt 00:02:05]}
43. Rd8 {[%clk 00:27:55]} {[%emt 00:00:53]} b6 {[%clk 00:24:58]} {[%emt
00:02:37]} 44. h4 {[%clk 00:22:46]} {[%emt 00:05:39]} Nd5 {[%clk 00:07:28]}
{[%emt 00:18:01]} 1/2-1/2

[Event "European Women's Chess Championship (1-48)"]
[Site "Batumi, Georgia"]
[Date "2026.05.25"]
[Round "1.18"]
[White "Skvortsova, Alena"]
[Black "Kulon, Klaudia"]
[Result "1-0"]
[TimeControl "90min/ 40moves+ 30min+ 30-sec increment from move 1"]
[WhiteTitle "-"]
[BlackTitle "-"]
[WhiteFideId "24166251"]
[BlackFideId "1131044"]
[WhiteElo "2135"]
[BlackElo "2377"]

1. e4 {[%clk 01:30:57]} {[%emt 00:00:03]} c5 {[%clk 01:30:54]} {[%emt
00:00:06]} 2. Nf3 {[%clk 01:31:18]} {[%emt 00:00:09]} g6 {[%clk 01:31:13]}
{[%emt 00:00:11]} 3. d4 {[%clk 01:29:15]} {[%emt 00:02:32]} cxd4 {[%clk
01:31:38]} {[%emt 00:00:05]} 4. Nxd4 {[%clk 01:29:42]} {[%emt 00:00:04]} Nc6
{[%clk 01:31:45]} {[%emt 00:00:22]} 5. c4 {[%clk 01:26:25]} {[%emt 00:03:46]}
Nf6 {[%clk 01:32:01]} {[%emt 00:00:14]} 6. Nc3 {[%clk 01:26:46]} {[%emt
00:00:10]} d6 {[%clk 01:32:25]} {[%emt 00:00:06]} 7. f3 {[%clk 01:25:05]}
{[%emt 00:02:11]} Nxd4 {[%clk 01:32:07]} {[%emt 00:00:48]} 8. Qxd4 {[%clk
01:25:30]} {[%emt 00:00:05]} Bg7 {[%clk 01:32:34]} {[%emt 00:00:04]} 9. Be3
{[%clk 01:25:50]} {[%emt 00:00:09]} O-O {[%clk 01:32:37]} {[%emt 00:00:28]} 10.
Qd2 {[%clk 01:26:12]} {[%emt 00:00:07]} Be6 {[%clk 01:30:45]} {[%emt 00:02:22]}
11. Rc1 {[%clk 01:25:19]} {[%emt 00:01:23]} Qa5 {[%clk 01:29:22]} {[%emt
00:01:53]} 12. b3 {[%clk 01:10:11]} {[%emt 00:15:38]} Rfc8 {[%clk 01:28:23]}
{[%emt 00:01:29]} 13. Be2 {[%clk 01:06:44]} {[%emt 00:03:57]} a6 {[%clk
01:26:13]} {[%emt 00:02:40]} 14. Nd5 {[%clk 00:59:58]} {[%emt 00:07:17]} Qxd2+
{[%clk 01:26:06]} {[%emt 00:00:37]} 15. Kxd2 {[%clk 01:00:23]} {[%emt
00:00:05]} Bxd5 {[%clk 01:24:29]} {[%emt 00:02:07]} 16. cxd5 {[%clk 01:00:30]}
{[%emt 00:00:23]} Nd7 {[%clk 01:23:08]} {[%emt 00:01:50]} 17. Rxc8+ {[%clk
00:58:22]} {[%emt 00:02:37]} Rxc8 {[%clk 01:23:34]} {[%emt 00:00:04]} 18. Rc1
{[%clk 00:58:44]} {[%emt 00:00:09]} Rxc1 {[%clk 01:22:43]} {[%emt 00:01:21]} 19.
Kxc1 {[%clk 00:59:09]} {[%emt 00:00:04]} Bc3 {[%clk 01:18:21]} {[%emt
00:04:52]} 20. a3 {[%clk 00:51:08]} {[%emt 00:08:32]} Ba5 {[%clk 01:13:51]}
{[%emt 00:05:00]} 21. b4 {[%clk 00:44:42]} {[%emt 00:06:57]} Bb6 {[%clk
01:14:01]} {[%emt 00:00:19]} 22. Kd2 {[%clk 00:37:48]} {[%emt 00:07:24]} Kg7
{[%clk 01:13:53]} {[%emt 00:00:38]} 23. a4 {[%clk 00:36:52]} {[%emt 00:01:27]}
f5 {[%clk 01:05:15]} {[%emt 00:09:08]} 24. Bxb6 {[%clk 00:26:58]} {[%emt
00:10:23]} Nxb6 {[%clk 01:03:47]} {[%emt 00:01:58]} 25. a5 {[%clk 00:27:23]}
{[%emt 00:00:06]} Na8 {[%clk 00:58:33]} {[%emt 00:05:43]} 26. b5 {[%clk
00:24:28]} {[%emt 00:03:25]} axb5 {[%clk 00:53:21]} {[%emt 00:05:42]} 27. Bxb5
{[%clk 00:21:38]} {[%emt 00:03:20]} fxe4 {[%clk 00:43:17]} {[%emt 00:10:34]} 28.
fxe4 {[%clk 00:21:43]} {[%emt 00:00:25]} Nc7 {[%clk 00:43:08]} {[%emt
00:00:40]} 29. Bd7 {[%clk 00:21:00]} {[%emt 00:01:12]} Na6 {[%clk 00:43:26]}
{[%emt 00:00:11]} 30. Bc8 {[%clk 00:19:40]} {[%emt 00:01:51]} Nc5 {[%clk
00:43:52]} {[%emt 00:00:05]} 31. Bxb7 {[%clk 00:18:26]} {[%emt 00:01:44]} Nb3+
{[%clk 00:40:28]} {[%emt 00:03:54]} 32. Kc3 {[%clk 00:18:33]} {[%emt 00:00:22]}
Nxa5 {[%clk 00:40:53]} {[%emt 00:00:05]} 33. Bc8 {[%clk 00:16:37]} {[%emt
00:02:26]} Kf6 {[%clk 00:40:14]} {[%emt 00:01:09]} 34. Kb4 {[%clk 00:16:55]}
{[%emt 00:00:12]} Ke5 {[%clk 00:40:37]} {[%emt 00:00:06]} 35. Kxa5 {[%clk
00:17:13]} {[%emt 00:00:13]} Kxe4 {[%clk 00:41:03]} {[%emt 00:00:05]} 36. Be6
{[%clk 00:17:23]} {[%emt 00:00:19]} Ke3 {[%clk 00:41:20]} {[%emt 00:00:13]} 37.
Kb5 {[%clk 00:17:30]} {[%emt 00:00:23]} Kf2 {[%clk 00:41:02]} {[%emt 00:00:47]}
38. Kc6 {[%clk 00:16:33]} {[%emt 00:01:29]} Kxg2 {[%clk 00:41:21]} {[%emt
00:00:11]} 39. Kd7 {[%clk 00:14:31]} {[%emt 00:02:31]} Kxh2 {[%clk 00:41:46]}
{[%emt 00:00:05]} 40. Kxe7 {[%clk 00:14:58]} {[%emt 00:00:04]} g5 {[%clk
00:41:03]} {[%emt 00:01:12]} 41. Kxd6 {[%clk 00:15:22]} {[%emt 00:00:06]} h5
{[%clk 00:41:17]} {[%emt 00:00:16]} 42. Ke5 {[%clk 00:15:35]} {[%emt 00:00:17]}
g4 {[%clk 00:41:08]} {[%emt 00:00:39]} 43. d6 {[%clk 00:15:14]} {[%emt
00:00:51]} g3 {[%clk 00:41:33]} {[%emt 00:00:04]} 44. Bd5 {[%clk 00:14:32]}
{[%emt 00:01:13]} h4 {[%clk 00:40:38]} {[%emt 00:01:26]} 45. d7 {[%clk
00:14:50]} {[%emt 00:00:11]} h3 {[%clk 00:41:04]} {[%emt 00:00:03]} 46. d8=Q
{[%clk 00:15:06]} {[%emt 00:00:15]} g2 {[%clk 00:41:30]} {[%emt 00:00:05]} 47.
Bxg2 {[%clk 00:14:35]} {[%emt 00:01:00]} Kxg2 {[%clk 00:41:52]} {[%emt
00:00:07]} 48. Qg5+ {[%clk 00:13:12]} {[%emt 00:01:53]} Kh1 {[%clk 00:42:08]}
{[%emt 00:00:14]} 49. Kf4 {[%clk 00:13:04]} {[%emt 00:00:40]} h2 {[%clk
00:42:33]} {[%emt 00:00:04]} 50. Kg3 {[%clk 00:13:28]} {[%emt 00:00:06]} 1-0

[Event "European Women's Chess Championship (1-48)"]
[Site "Batumi, Georgia"]
[Date "2026.05.25"]
[Round "1.19"]
[White "Vega Gutierrez, Sabrina"]
[Black "Dwilewicz, Katarzyna"]
[Result "1-0"]
[TimeControl "90min/ 40moves+ 30min+ 30-sec increment from move 1"]
[WhiteTitle "-"]
[BlackTitle "-"]
[WhiteFideId "2219026"]
[BlackFideId "1148486"]
[WhiteElo "2375"]
[BlackElo "2131"]

1. e4 {[%clk 01:30:56]} {[%emt 00:00:03]} e5 {[%clk 01:30:35]} {[%emt
00:00:26]} 2. Nf3 {[%clk 01:31:18]} {[%emt 00:00:07]} Nc6 {[%clk 01:30:51]}
{[%emt 00:00:14]} 3. d4 {[%clk 01:31:26]} {[%emt 00:00:23]} exd4 {[%clk
01:31:00]} {[%emt 00:00:21]} 4. Bc4 {[%clk 01:31:44]} {[%emt 00:00:11]} Nf6
{[%clk 01:31:14]} {[%emt 00:00:17]} 5. e5 {[%clk 01:32:02]} {[%emt 00:00:11]}
Ne4 {[%clk 01:30:34]} {[%emt 00:01:10]} 6. Qe2 {[%clk 01:32:18]} {[%emt
00:00:14]} Nc5 {[%clk 01:30:56]} {[%emt 00:00:09]} 7. c3 {[%clk 01:32:40]}
{[%emt 00:00:08]} d3 {[%clk 01:30:43]} {[%emt 00:00:43]} 8. Qe3 {[%clk
01:33:00]} {[%emt 00:00:09]} Be7 {[%clk 01:30:23]} {[%emt 00:00:51]} 9. b4
{[%clk 01:33:10]} {[%emt 00:00:20]} Ne6 {[%clk 01:29:27]} {[%emt 00:01:26]} 10.
O-O {[%clk 01:33:28]} {[%emt 00:00:11]} O-O {[%clk 01:14:52]} {[%emt 00:15:06]}
11. Rd1 {[%clk 01:33:23]} {[%emt 00:00:34]} d6 {[%clk 01:08:07]} {[%emt
00:07:16]} 12. Rxd3 {[%clk 01:30:33]} {[%emt 00:03:20]} Bd7 {[%clk 01:03:48]}
{[%emt 00:04:48]} 13. Na3 {[%clk 01:27:41]} {[%emt 00:03:23]} Nxe5 {[%clk
00:54:07]} {[%emt 00:10:11]} 14. Nxe5 {[%clk 01:27:51]} {[%emt 00:00:19]} dxe5
{[%clk 00:54:34]} {[%emt 00:00:04]} 15. Bxe6 {[%clk 01:26:40]} {[%emt
00:01:41]} fxe6 {[%clk 00:55:00]} {[%emt 00:00:04]} 16. Nc4 {[%clk 01:25:12]}
{[%emt 00:01:58]} Bh4 {[%clk 00:41:53]} {[%emt 00:13:37]} 17. f3 {[%clk
01:14:32]} {[%emt 00:11:10]} Qe7 {[%clk 00:38:17]} {[%emt 00:04:07]} 18. Nxe5
{[%clk 01:14:14]} {[%emt 00:00:47]} Ba4 {[%clk 00:37:32]} {[%emt 00:01:14]} 19.
Bb2 {[%clk 00:50:55]} {[%emt 00:23:50]} a5 {[%clk 00:34:19]} {[%emt 00:03:44]}
20. b5 {[%clk 00:47:40]} {[%emt 00:03:45]} Bg5 {[%clk 00:29:40]} {[%emt
00:05:08]} 21. Qf2 {[%clk 00:45:16]} {[%emt 00:02:53]} Rad8 {[%clk 00:17:23]}
{[%emt 00:12:48]} 22. c4 {[%clk 00:43:55]} {[%emt 00:01:51]} Rxd3 {[%clk
00:16:33]} {[%emt 00:01:20]} 23. Nxd3 {[%clk 00:44:22]} {[%emt 00:00:03]} Rd8
{[%clk 00:16:56]} {[%emt 00:00:07]} 24. Qe2 {[%clk 00:40:45]} {[%emt 00:04:06]}
c6 {[%clk 00:15:40]} {[%emt 00:01:47]} 25. b6 {[%clk 00:37:17]} {[%emt
00:03:58]} c5 {[%clk 00:09:57]} {[%emt 00:06:14]} 26. Re1 {[%clk 00:33:01]}
{[%emt 00:04:45]} Qd6 {[%clk 00:08:55]} {[%emt 00:01:32]} 27. Nf2 {[%clk
00:23:07]} {[%emt 00:10:24]} Qxb6 {[%clk 00:08:27]} {[%emt 00:00:59]} 28. Bc3
{[%clk 00:23:34]} {[%emt 00:00:02]} Re8 {[%clk 00:03:36]} {[%emt 00:05:22]} 29.
Qe4 {[%clk 00:22:47]} {[%emt 00:01:16]} Qc7 {[%clk 00:01:23]} {[%emt 00:02:44]}
30. h4 {[%clk 00:17:06]} {[%emt 00:06:10]} Bf6 {[%clk 00:01:19]} {[%emt
00:00:34]} 31. Bxf6 {[%clk 00:16:46]} {[%emt 00:00:50]} gxf6 {[%clk 00:01:48]}
{[%emt 00:00:02]} 32. Ng4 {[%clk 00:16:38]} {[%emt 00:00:37]} Qg7 {[%clk
00:01:09]} {[%emt 00:01:09]} 33. Qf4 {[%clk 00:16:16]} {[%emt 00:00:52]} f5
{[%clk 00:01:09]} {[%emt 00:00:31]} 34. Ne5 {[%clk 00:14:45]} {[%emt 00:02:01]}
Rd8 {[%clk 00:01:16]} {[%emt 00:00:22]} 35. Qe3 {[%clk 00:09:49]} {[%emt
00:05:26]} b6 {[%clk 00:01:02]} {[%emt 00:00:44]} 36. f4 {[%clk 00:08:39]}
{[%emt 00:01:40]} Rd4 {[%clk 00:01:16]} {[%emt 00:00:16]} 37. Qf3 {[%clk
00:08:34]} {[%emt 00:00:35]} Rd8 {[%clk 00:00:40]} {[%emt 00:01:07]} 38. Re3
{[%clk 00:07:39]} {[%emt 00:01:24]} Kh8 {[%clk 00:00:39]} {[%emt 00:00:31]} 39.
h5 {[%clk 00:03:32]} {[%emt 00:04:37]} Qf6 {[%clk 00:00:41]} {[%emt 00:00:28]}
40. Qh3 {[%clk 00:00:54]} {[%emt 00:03:07]} Bc2 {[%clk 00:00:44]} {[%emt
00:00:28]} 41. h6 {[%clk 00:30:19]} {[%emt 00:04:07]} Ba4 {[%clk 00:11:56]}
{[%emt 00:19:18]} 42. Rg3 {[%clk 00:22:44]} {[%emt 00:08:06]} Be8 {[%clk
00:10:11]} {[%emt 00:02:16]} 43. Rg5 {[%clk 00:20:46]} {[%emt 00:02:27]} Rd1+
{[%clk 00:04:02]} {[%emt 00:06:40]} 44. Kh2 {[%clk 00:20:52]} {[%emt 00:00:22]}
Rd8 {[%clk 00:03:02]} {[%emt 00:01:31]} 45. Qh4 {[%clk 00:14:45]} {[%emt
00:06:37]} Bg6 {[%clk 00:02:41]} {[%emt 00:00:52]} 46. Qg3 {[%clk 00:14:31]}
{[%emt 00:00:43]} Bf7 {[%clk 00:01:17]} {[%emt 00:01:55]} 47. Qc3 {[%clk
00:05:49]} {[%emt 00:09:12]} Rd4 {[%clk 00:01:39]} {[%emt 00:00:07]} 48. Nf3
{[%clk 00:05:55]} {[%emt 00:00:24]} Qxh6+ {[%clk 00:01:42]} {[%emt 00:00:27]}
49. Kg1 {[%clk 00:06:08]} {[%emt 00:00:17]} Qf6 {[%clk 00:01:45]} {[%emt
00:00:27]} 50. Nxd4 {[%clk 00:06:36]} {[%emt 00:00:03]} cxd4 {[%clk 00:01:34]}
{[%emt 00:00:41]} 51. Qa3 {[%clk 00:06:24]} {[%emt 00:00:41]} Qd8 {[%clk
00:00:42]} {[%emt 00:01:21]} 52. Rg3 {[%clk 00:06:50]} {[%emt 00:00:04]} e5
{[%clk 00:00:36]} {[%emt 00:00:37]} 53. fxe5 {[%clk 00:07:04]} {[%emt
00:00:16]} f4 {[%clk 00:00:39]} {[%emt 00:00:28]} 54. Rf3 {[%clk 00:06:48]}
{[%emt 00:00:45]} Bxc4 {[%clk 00:00:36]} {[%emt 00:00:33]} 55. Rxf4 {[%clk
00:06:34]} {[%emt 00:00:43]} Kg7 {[%clk 00:00:35]} {[%emt 00:00:32]} 56. Qd6
{[%clk 00:03:37]} {[%emt 00:03:27]} Qxd6 {[%clk 00:00:50]} {[%emt 00:00:15]} 57.
exd6 {[%clk 00:04:05]} {[%emt 00:00:01]} Be6 {[%clk 00:01:15]} {[%emt
00:00:06]} 58. Rxd4 {[%clk 00:04:27]} {[%emt 00:00:08]} Bd7 {[%clk 00:01:35]}
{[%emt 00:00:11]} 59. Re4 {[%clk 00:04:48]} {[%emt 00:00:08]} Kf6 {[%clk
00:02:00]} {[%emt 00:00:05]} 60. Re7 {[%clk 00:05:08]} {[%emt 00:00:10]} Bf5
{[%clk 00:02:08]} {[%emt 00:00:23]} 61. g4 {[%clk 00:03:55]} {[%emt 00:01:42]}
Bb1 {[%clk 00:01:06]} {[%emt 00:01:32]} 62. g5+ {[%clk 00:04:20]} {[%emt
00:00:05]} Kxg5 {[%clk 00:01:28]} {[%emt 00:00:08]} 63. d7 {[%clk 00:04:47]}
{[%emt 00:00:03]} 1-0